[Event "Live Chess"]
[Site "Chess.com"]
[Date "2021.02.24"]
[Round "5"]
[White "Tirantes"]
[Black "AlexanderL"]
[Result "1/2-1/2"]
[CurrentPosition "8/k7/p7/8/p4R2/3K4/6P1/4r3 w - -"]
[Timezone "UTC"]
[ECO "A40"]
[ECOUrl "https://www.chess.com/openings/Modern-Defense-with-1-d4-2.c4"]
[UTCDate "2021.02.24"]
[UTCTime "02:29:54"]
[WhiteElo "2459"]
[BlackElo "2733"]
[TimeControl "2100+2"]
[Termination "Game drawn by agreement"]
[StartTime "02:29:54"]
[EndDate "2021.02.24"]
[EndTime "03:35:03"]
[Link "https://www.chess.com/live/game/7872826807"]

1. c4 {[%clk 0:34:51.4]} 1... g6 {[%clk 0:34:58.1]} 2. d4 {[%clk 0:34:17.9]} 2... Nf6 {[%clk 0:34:27.3]} 3. Nc3 {[%clk 0:33:14.3]} 3... d5 {[%clk 0:34:16.9]} 4. cxd5 {[%clk 0:32:43.7]} 4... Nxd5 {[%clk 0:34:18.8]} 5. e3 {[%clk 0:32:37.9]} 5... Bg7 {[%clk 0:33:47.2]} 6. Bc4 {[%clk 0:32:30.2]} 6... Nxc3 {[%clk 0:33:39.1]} 7. bxc3 {[%clk 0:32:26.4]} 7... c5 {[%clk 0:33:35.8]} 8. h4 {[%clk 0:31:24.1]} 8... Nc6 {[%clk 0:33:24.6]} 9. h5 {[%clk 0:30:57.3]} 9... Qc7 {[%clk 0:32:36.3]} 10. Bb3 {[%clk 0:28:47]} 10... Bf5 {[%clk 0:31:54.3]} 11. Ne2 {[%clk 0:27:38.5]} 11... O-O-O {[%clk 0:31:20.9]} 12. Bb2 {[%clk 0:26:39.3]} 12... e5 {[%clk 0:29:57.3]} 13. Rc1 {[%clk 0:25:18.3]} 13... Rhe8 {[%clk 0:29:15]} 14. Kf1 {[%clk 0:24:23.3]} 14... Kb8 {[%clk 0:28:44.8]} 15. Kg1 {[%clk 0:23:37.6]} 15... gxh5 {[%clk 0:24:30.9]} 16. Rxh5 {[%clk 0:21:44.1]} 16... Bg6 {[%clk 0:24:29.8]} 17. Rh3 {[%clk 0:21:19.7]} 17... Qb6 {[%clk 0:24:03.7]} 18. Ba1 {[%clk 0:19:56.3]} 18... cxd4 {[%clk 0:23:45.3]} 19. cxd4 {[%clk 0:19:30.1]} 19... exd4 {[%clk 0:23:47.2]} 20. Nxd4 {[%clk 0:18:44.8]} 20... Nxd4 {[%clk 0:23:49.1]} 21. Bxd4 {[%clk 0:18:26.1]} 21... Bxd4 {[%clk 0:23:51]} 22. exd4 {[%clk 0:18:22.7]} 22... Rxd4 {[%clk 0:23:27.9]} 23. Qf3 {[%clk 0:17:55.5]} 23... Qd6 {[%clk 0:23:19]} 24. Qc3 {[%clk 0:16:53.9]} 24... a6 {[%clk 0:22:55.4]} 25. Re3 {[%clk 0:16:30.5]} 25... Rxe3 {[%clk 0:21:42.5]} 26. Qxe3 {[%clk 0:16:24.5]} 26... Re4 {[%clk 0:21:18.6]} 27. Qc3 {[%clk 0:15:50.7]} 27... Rh4 {[%clk 0:19:22.7]} 28. Qc8+ {[%clk 0:15:18.5]} 28... Ka7 {[%clk 0:19:22.8]} 29. Qc7 {[%clk 0:15:15.4]} 29... Rd4 {[%clk 0:18:24.1]} 30. Qc3 {[%clk 0:13:40.9]} 30... h5 {[%clk 0:17:31.7]} 31. Qe3 {[%clk 0:13:28.4]} 31... Qb6 {[%clk 0:17:19]} 32. Rc8 {[%clk 0:13:10.4]} 32... Rd6 {[%clk 0:12:07.5]} 33. Qe8 {[%clk 0:12:30.8]} 33... Qd4 {[%clk 0:12:06.5]} 34. Rc4 {[%clk 0:10:03.8]} 34... Qa1+ {[%clk 0:11:17]} 35. Kh2 {[%clk 0:10:01.5]} 35... Re6 {[%clk 0:11:15.8]} 36. Qc8 {[%clk 0:08:44.8]} 36... Qe5+ {[%clk 0:10:45.2]} 37. f4 {[%clk 0:08:37.1]} 37... Qd6 {[%clk 0:10:38.5]} 38. Qc5+ {[%clk 0:07:21.6]} 38... Qxc5 {[%clk 0:10:37.7]} 39. Rxc5 {[%clk 0:07:22.5]} 39... Rf6 {[%clk 0:10:03.4]} 40. Kg3 {[%clk 0:06:52.9]} 40... h4+ {[%clk 0:07:50.9]} 41. Kf3 {[%clk 0:06:24.1]} 41... Bf5 {[%clk 0:07:17.5]} 42. Rc7 {[%clk 0:05:36.5]} 42... Be6 {[%clk 0:06:41.8]} 43. Bxe6 {[%clk 0:05:20]} 43... fxe6 {[%clk 0:06:43.7]} 44. Rh7 {[%clk 0:05:03.7]} 44... e5 {[%clk 0:05:31.4]} 45. Rxh4 {[%clk 0:05:03.6]} 45... b5 {[%clk 0:05:20.6]} 46. Ke4 {[%clk 0:04:45.8]} 46... exf4 {[%clk 0:05:19.4]} 47. Rxf4 {[%clk 0:04:42.1]} 47... Re6+ {[%clk 0:05:15.1]} 48. Kd3 {[%clk 0:04:07.6]} 48... Re1 {[%clk 0:05:04.2]} 49. a4 {[%clk 0:03:38.1]} 49... bxa4 {[%clk 0:04:59]} 1/2-1/2

[Event "Live Chess"]
[Site "Chess.com"]
[Date "2021.02.24"]
[Round "5"]
[White "KyronGriffith"]
[Black "GGuseinov"]
[Result "0-1"]
[CurrentPosition "5bk1/p6p/2R3p1/1q1P1p2/3B4/1n6/6PP/2R4K w - -"]
[Timezone "UTC"]
[ECO "E76"]
[ECOUrl "https://www.chess.com/openings/Kings-Indian-Defense-Four-Pawns-Attack-5...O-O-6.Nf3"]
[UTCDate "2021.02.24"]
[UTCTime "02:30:12"]
[WhiteElo "2313"]
[BlackElo "2626"]
[TimeControl "2100+2"]
[Termination "GGuseinov won by resignation"]
[StartTime "02:30:12"]
[EndDate "2021.02.24"]
[EndTime "03:35:30"]
[Link "https://www.chess.com/live/game/7872827907"]

1. d4 {[%clk 0:35:01]} 1... Nf6 {[%clk 0:34:59.7]} 2. c4 {[%clk 0:34:56.8]} 2... g6 {[%clk 0:34:56.2]} 3. Nc3 {[%clk 0:34:56.1]} 3... Bg7 {[%clk 0:34:57.1]} 4. e4 {[%clk 0:34:54.2]} 4... d6 {[%clk 0:34:57.6]} 5. f4 {[%clk 0:34:50.2]} 5... O-O {[%clk 0:34:58]} 6. Nf3 {[%clk 0:34:49.6]} 6... e5 {[%clk 0:34:59.1]} 7. fxe5 {[%clk 0:34:48.4]} 7... dxe5 {[%clk 0:34:59.9]} 8. d5 {[%clk 0:34:48.4]} 8... Na6 {[%clk 0:34:53.6]} 9. Bd3 {[%clk 0:34:47.8]} 9... c6 {[%clk 0:34:12.9]} 10. O-O {[%clk 0:34:45]} 10... cxd5 {[%clk 0:31:07.1]} 11. cxd5 {[%clk 0:34:42.5]} 11... Ne8 {[%clk 0:31:03.7]} 12. Kh1 {[%clk 0:33:08.8]} 12... Nd6 {[%clk 0:30:39.3]} 13. Bg5 {[%clk 0:28:39.4]} 13... f6 {[%clk 0:30:05.2]} 14. Bh4 {[%clk 0:28:09.3]} 14... Qe8 {[%clk 0:27:31.9]} 15. Qe2 {[%clk 0:27:08]} 15... Nc5 {[%clk 0:27:08.5]} 16. Bc2 {[%clk 0:26:20.8]} 16... b6 {[%clk 0:26:38.2]} 17. b4 {[%clk 0:24:42.3]} 17... Ba6 {[%clk 0:26:36.6]} 18. Qd1 {[%clk 0:24:30.9]} 18... Nd7 {[%clk 0:20:45.7]} 19. Bd3 {[%clk 0:24:24.2]} 19... Bxd3 {[%clk 0:20:45.6]} 20. Qxd3 {[%clk 0:24:26.1]} 20... Rc8 {[%clk 0:18:04.5]} 21. Nb5 {[%clk 0:23:14.2]} 21... Nxb5 {[%clk 0:17:32.1]} 22. Qxb5 {[%clk 0:23:16.1]} 22... Bh6 {[%clk 0:17:29]} 23. a4 {[%clk 0:22:25.9]} 23... Rf7 {[%clk 0:13:45.1]} 24. a5 {[%clk 0:20:55.2]} 24... bxa5 {[%clk 0:13:44.9]} 25. Rxa5 {[%clk 0:20:57.1]} 25... Rb8 {[%clk 0:13:36.6]} 26. Qa4 {[%clk 0:20:45.1]} 26... Bf8 {[%clk 0:13:17.9]} 27. Rb1 {[%clk 0:20:22.2]} 27... Nb6 {[%clk 0:13:09.9]} 28. Qa2 {[%clk 0:19:58.9]} 28... Nc8 {[%clk 0:12:49.5]} 29. Ra6 {[%clk 0:19:05]} 29... Nd6 {[%clk 0:11:11.2]} 30. Nd2 {[%clk 0:18:26.2]} 30... Rbb7 {[%clk 0:10:35.3]} 31. Nc4 {[%clk 0:15:31.5]} 31... Nxe4 {[%clk 0:09:47.8]} 32. Qc2 {[%clk 0:15:15.2]} 32... f5 {[%clk 0:09:32.5]} 33. Re6 {[%clk 0:15:07.5]} 33... Qc8 {[%clk 0:09:19.9]} 34. Rc6 {[%clk 0:14:55.4]} 34... Qb8 {[%clk 0:08:38]} 35. Bg3 {[%clk 0:13:15.4]} 35... Rxb4 {[%clk 0:08:04.3]} 36. Rc1 {[%clk 0:11:29.9]} 36... Rfb7 {[%clk 0:06:02.6]} 37. Na5 {[%clk 0:07:19.7]} 37... Rb2 {[%clk 0:05:31.8]} 38. Qd1 {[%clk 0:06:56.6]} 38... Rd2 {[%clk 0:05:00]} 39. Qxd2 {[%clk 0:06:13.3]} 39... Nxd2 {[%clk 0:04:55]} 40. Nxb7 {[%clk 0:06:09.4]} 40... Qxb7 {[%clk 0:04:50.9]} 41. Bxe5 {[%clk 0:05:34.1]} 41... Qb5 {[%clk 0:04:29.9]} 42. Bd4 {[%clk 0:04:07.5]} 42... Nb3 {[%clk 0:04:09.9]} 0-1

[Event "Live Chess"]
[Site "Chess.com"]
[Date "2021.02.24"]
[Round "5"]
[White "SmilyFace4"]
[Black "kingandqueen2017"]
[Result "1-0"]
[CurrentPosition "8/b4Np1/4p1p1/3pPk2/p4R2/P5P1/1r3PP1/6K1 b - -"]
[Timezone "UTC"]
[ECO "A45"]
[ECOUrl "https://www.chess.com/openings/Indian-Game"]
[UTCDate "2021.02.24"]
[UTCTime "02:30:15"]
[WhiteElo "2057"]
[BlackElo "2091"]
[TimeControl "2100+2"]
[Termination "SmilyFace4 won by checkmate"]
[StartTime "02:30:15"]
[EndDate "2021.02.24"]
[EndTime "03:25:20"]
[Link "https://www.chess.com/live/game/7872830235"]

1. d4 {[%clk 0:35:00.7]} 1... Nf6 {[%clk 0:34:59.8]} 2. Bf4 {[%clk 0:34:55.8]} 2... d5 {[%clk 0:34:38.9]} 3. e3 {[%clk 0:34:51.2]} 3... c5 {[%clk 0:34:37.7]} 4. c3 {[%clk 0:34:34.4]} 4... Nc6 {[%clk 0:34:37.8]} 5. Nd2 {[%clk 0:34:18.5]} 5... Bf5 {[%clk 0:34:33.9]} 6. Ngf3 {[%clk 0:33:54.5]} 6... e6 {[%clk 0:34:31]} 7. Qb3 {[%clk 0:33:47.2]} 7... Qc8 {[%clk 0:34:12.9]} 8. c4 {[%clk 0:31:05.6]} 8... cxd4 {[%clk 0:34:02.3]} 9. exd4 {[%clk 0:29:47.9]} 9... Be7 {[%clk 0:33:24.9]} 10. c5 {[%clk 0:27:56.7]} 10... O-O {[%clk 0:32:52]} 11. Bd3 {[%clk 0:26:46.2]} 11... Nh5 {[%clk 0:31:52.9]} 12. Bg3 {[%clk 0:25:57.4]} 12... Bg6 {[%clk 0:31:17.6]} 13. O-O {[%clk 0:25:32.2]} 13... Nxg3 {[%clk 0:30:32]} 14. hxg3 {[%clk 0:25:14.9]} 14... b6 {[%clk 0:27:56.1]} 15. Bxg6 {[%clk 0:24:12.4]} 15... hxg6 {[%clk 0:27:53.2]} 16. cxb6 {[%clk 0:23:40.2]} 16... Rb8 {[%clk 0:27:52.9]} 17. a3 {[%clk 0:22:24.2]} 17... Rxb6 {[%clk 0:27:46.6]} 18. Qc3 {[%clk 0:21:29.4]} 18... a5 {[%clk 0:26:38.6]} 19. Rfc1 {[%clk 0:19:42.8]} 19... Qb7 {[%clk 0:25:58]} 20. Rab1 {[%clk 0:18:31.1]} 20... Rb8 {[%clk 0:25:25.7]} 21. Rc2 {[%clk 0:18:03.2]} 21... Qa6 {[%clk 0:24:23.1]} 22. Ne5 {[%clk 0:15:52.6]} 22... Nxe5 {[%clk 0:21:53.5]} 23. dxe5 {[%clk 0:15:52.6]} 23... a4 {[%clk 0:20:18.5]} 24. Rbc1 {[%clk 0:13:37.1]} 24... Bd8 {[%clk 0:19:43.8]} 25. Qd4 {[%clk 0:12:23.1]} 25... Rb5 {[%clk 0:19:06.2]} 26. Rc6 {[%clk 0:11:28.4]} 26... Qa8 {[%clk 0:17:49]} 27. R6c2 {[%clk 0:09:23.4]} 27... Bb6 {[%clk 0:17:23.8]} 28. Qd3 {[%clk 0:07:53]} 28... Ba7 {[%clk 0:16:32.5]} 29. Qc3 {[%clk 0:07:19.4]} 29... Qb7 {[%clk 0:14:48.4]} 30. Nf3 {[%clk 0:06:10.9]} 30... Rxb2 {[%clk 0:13:20.4]} 31. Rxb2 {[%clk 0:06:07.2]} 31... Qxb2 {[%clk 0:13:16.2]} 32. Qxb2 {[%clk 0:06:05.6]} 32... Rxb2 {[%clk 0:13:10.5]} 33. Rc8+ {[%clk 0:05:54.8]} 33... Kh7 {[%clk 0:13:09.7]} 34. Ng5+ {[%clk 0:04:30.4]} 34... Kh6 {[%clk 0:13:07.4]} 35. Nxf7+ {[%clk 0:04:32.3]} 35... Kh5 {[%clk 0:13:08.2]} 36. Rh8+ {[%clk 0:04:33.2]} 36... Kg4 {[%clk 0:13:08.7]} 37. Rh4+ {[%clk 0:04:34.3]} 37... Kf5 {[%clk 0:13:08.1]} 38. Rf4# {[%clk 0:04:36.2]} 1-0

[Event "Live Chess"]
[Site "Chess.com"]
[Date "2021.02.24"]
[Round "5"]
[White "twangbio"]
[Black "artliou"]
[Result "0-1"]
[CurrentPosition "8/8/8/2b5/8/5kqK/8/8 w - -"]
[Timezone "UTC"]
[ECO "B91"]
[ECOUrl "https://www.chess.com/openings/Sicilian-Defense-Open-Najdorf-Zagreb-Variation-6...g6"]
[UTCDate "2021.02.24"]
[UTCTime "02:30:09"]
[WhiteElo "1944"]
[BlackElo "2200"]
[TimeControl "2100+2"]
[Termination "artliou won by checkmate"]
[StartTime "02:30:09"]
[EndDate "2021.02.24"]
[EndTime "03:38:06"]
[Link "https://www.chess.com/live/game/7872831165"]

1. e4 {[%clk 0:34:58.4]} 1... c5 {[%clk 0:34:58.3]} 2. Nf3 {[%clk 0:34:51.6]} 2... d6 {[%clk 0:34:58.2]} 3. d4 {[%clk 0:34:51.4]} 3... cxd4 {[%clk 0:34:58.8]} 4. Nxd4 {[%clk 0:34:49.8]} 4... Nf6 {[%clk 0:34:58.5]} 5. Nc3 {[%clk 0:34:48.5]} 5... a6 {[%clk 0:34:57.3]} 6. g3 {[%clk 0:34:38.1]} 6... g6 {[%clk 0:34:47.9]} 7. Bg2 {[%clk 0:34:34.6]} 7... Bg7 {[%clk 0:34:47.8]} 8. O-O {[%clk 0:34:31.6]} 8... O-O {[%clk 0:34:46.3]} 9. h3 {[%clk 0:34:31.4]} 9... Qc7 {[%clk 0:34:40.2]} 10. Be3 {[%clk 0:34:29.8]} 10... Nc6 {[%clk 0:34:21.2]} 11. Nde2 {[%clk 0:34:02.3]} 11... b5 {[%clk 0:33:42.8]} 12. a3 {[%clk 0:32:24.9]} 12... Bb7 {[%clk 0:33:09.7]} 13. Qd2 {[%clk 0:31:30.1]} 13... Rfd8 {[%clk 0:31:29.4]} 14. Rad1 {[%clk 0:29:16.7]} 14... Ne5 {[%clk 0:29:24]} 15. b3 {[%clk 0:28:31.2]} 15... Rac8 {[%clk 0:28:49.9]} 16. f4 {[%clk 0:27:43.5]} 16... Ned7 {[%clk 0:28:48.8]} 17. Rfe1 {[%clk 0:24:52]} 17... Nc5 {[%clk 0:26:51.1]} 18. Nd5 {[%clk 0:22:47.4]} 18... Bxd5 {[%clk 0:22:28.7]} 19. exd5 {[%clk 0:22:41.9]} 19... Nce4 {[%clk 0:22:20.8]} 20. Qd4 {[%clk 0:21:16.1]} 20... Nc3 {[%clk 0:21:16.2]} 21. Qxc3 {[%clk 0:20:09.2]} 21... Qxc3 {[%clk 0:21:14.2]} 22. Nxc3 {[%clk 0:20:09.9]} 22... Rxc3 {[%clk 0:21:16.1]} 23. Bd4 {[%clk 0:18:35.2]} 23... Rxc2 {[%clk 0:21:07.9]} 24. Rxe7 {[%clk 0:18:21.7]} 24... Ra2 {[%clk 0:20:12.6]} 25. Ra1 {[%clk 0:16:07.9]} 25... Rd2 {[%clk 0:17:21.3]} 26. Bc3 {[%clk 0:13:18.6]} 26... Rd3 {[%clk 0:15:33.4]} 27. Rc7 {[%clk 0:12:00.3]} 27... Rxg3 {[%clk 0:13:06.6]} 28. Bxf6 {[%clk 0:10:16.3]} 28... Bxf6 {[%clk 0:13:05]} 29. Rb1 {[%clk 0:10:13.7]} 29... Rc3 {[%clk 0:11:22.6]} 30. Rc6 {[%clk 0:08:57.4]} 30... a5 {[%clk 0:10:34.5]} 31. Ra6 {[%clk 0:07:52.1]} 31... b4 {[%clk 0:09:41.9]} 32. Rxa5 {[%clk 0:06:57.1]} 32... bxa3 {[%clk 0:09:42.2]} 33. Rxa3 {[%clk 0:06:51.7]} 33... Rb8 {[%clk 0:09:42.6]} 34. Ra6 {[%clk 0:06:14]} 34... Bd4+ {[%clk 0:09:34.8]} 35. Kh2 {[%clk 0:06:09.1]} 35... Bc5 {[%clk 0:09:32.3]} 36. b4 {[%clk 0:05:18.4]} 36... Rxb4 {[%clk 0:09:29.1]} 37. Rxb4 {[%clk 0:05:08.4]} 37... Bxb4 {[%clk 0:09:31]} 38. Rb6 {[%clk 0:04:17]} 38... Bc5 {[%clk 0:09:21.4]} 39. Rc6 {[%clk 0:04:09.4]} 39... Kg7 {[%clk 0:09:12.6]} 40. Kh1 {[%clk 0:03:18.3]} 40... Kf6 {[%clk 0:08:51.4]} 41. Ra6 {[%clk 0:02:22.1]} 41... Rc4 {[%clk 0:08:45.2]} 42. Kh2 {[%clk 0:01:20.5]} 42... Rxf4 {[%clk 0:08:43.4]} 43. Kg3 {[%clk 0:01:11.5]} 43... Rb4 {[%clk 0:08:39.6]} 44. Ra8 {[%clk 0:00:59.6]} 44... h5 {[%clk 0:08:37.7]} 45. Rh8 {[%clk 0:00:56.1]} 45... h4+ {[%clk 0:08:31.2]} 46. Kh2 {[%clk 0:00:50.6]} 46... Bf2 {[%clk 0:08:30.9]} 47. Bf3 {[%clk 0:00:31]} 47... Bg3+ {[%clk 0:08:30.7]} 48. Kg2 {[%clk 0:00:29.2]} 48... Rb2+ {[%clk 0:08:31.4]} 49. Kh1 {[%clk 0:00:27.7]} 49... Rh2+ {[%clk 0:08:24.3]} 50. Kg1 {[%clk 0:00:28.6]} 50... Rxh3 {[%clk 0:08:25.3]} 51. Ra8 {[%clk 0:00:26.4]} 51... Rh2 {[%clk 0:08:25]} 52. Ra6 {[%clk 0:00:25.3]} 52... Rf2 {[%clk 0:08:13.2]} 53. Rxd6+ {[%clk 0:00:22.9]} 53... Bxd6 {[%clk 0:08:12.7]} 54. Kxf2 {[%clk 0:00:22.8]} 54... Kg5 {[%clk 0:08:08.8]} 55. Kg2 {[%clk 0:00:23.4]} 55... Kf4 {[%clk 0:08:04.1]} 56. Bd1 {[%clk 0:00:23.3]} 56... g5 {[%clk 0:07:50.6]} 57. Be2 {[%clk 0:00:23.4]} 57... Ke4 {[%clk 0:07:47.3]} 58. Bf3+ {[%clk 0:00:23]} 58... Kf4 {[%clk 0:07:46.8]} 59. Be2 {[%clk 0:00:23.1]} 59... f5 {[%clk 0:07:47.5]} 60. Kf2 {[%clk 0:00:20.7]} 60... g4 {[%clk 0:07:41.3]} 61. Kg2 {[%clk 0:00:21.4]} 61... Ke3 {[%clk 0:07:37.5]} 62. Kf1 {[%clk 0:00:22.7]} 62... Kd4 {[%clk 0:07:37.9]} 63. Bd1 {[%clk 0:00:19.9]} 63... Kxd5 {[%clk 0:07:37.6]} 64. Kg2 {[%clk 0:00:21.8]} 64... Ke4 {[%clk 0:07:38.2]} 65. Be2 {[%clk 0:00:22.9]} 65... Ke3 {[%clk 0:07:38.4]} 66. Bd1 {[%clk 0:00:24]} 66... h3+ {[%clk 0:07:27.6]} 67. Kg1 {[%clk 0:00:25.2]} 67... g3 {[%clk 0:07:28.7]} 68. Bb3 {[%clk 0:00:23.2]} 68... f4 {[%clk 0:07:10.1]} 69. Bd5 {[%clk 0:00:22.5]} 69... f3 {[%clk 0:07:07.6]} 70. Bxf3 {[%clk 0:00:23.6]} 70... Kxf3 {[%clk 0:07:07.8]} 71. Kh1 {[%clk 0:00:25.5]} 71... g2+ {[%clk 0:07:07]} 72. Kg1 {[%clk 0:00:26.9]} 72... Bc5+ {[%clk 0:07:08]} 73. Kh2 {[%clk 0:00:26]} 73... g1=Q+ {[%clk 0:07:07.6]} 74. Kxh3 {[%clk 0:00:27.9]} 74... Qg3# {[%clk 0:07:08.9]} 0-1

[Event "Live Chess"]
[Site "Chess.com"]
[Date "2021.02.24"]
[Round "5"]
[White "David_Askin"]
[Black "J3Chess24"]
[Result "1/2-1/2"]
[CurrentPosition "8/8/8/3K2k1/8/8/8/8 w - -"]
[Timezone "UTC"]
[ECO "D11"]
[ECOUrl "https://www.chess.com/openings/Slav-Defense-Modern-Line-3...Nf6"]
[UTCDate "2021.02.24"]
[UTCTime "02:30:06"]
[WhiteElo "2049"]
[BlackElo "1943"]
[TimeControl "2100+2"]
[Termination "Game drawn by insufficient material"]
[StartTime "02:30:06"]
[EndDate "2021.02.24"]
[EndTime "03:44:20"]
[Link "https://www.chess.com/live/game/7872831513"]

1. d4 {[%clk 0:34:54.1]} 1... d5 {[%clk 0:34:59.1]} 2. Nf3 {[%clk 0:34:51.7]} 2... Nf6 {[%clk 0:34:51.7]} 3. c4 {[%clk 0:34:51.8]} 3... c6 {[%clk 0:34:51.8]} 4. Nc3 {[%clk 0:34:51.4]} 4... e6 {[%clk 0:34:52.2]} 5. e3 {[%clk 0:34:51.9]} 5... Nbd7 {[%clk 0:34:52.6]} 6. Bd3 {[%clk 0:34:52.7]} 6... dxc4 {[%clk 0:34:49.4]} 7. Bxc4 {[%clk 0:34:54.6]} 7... b5 {[%clk 0:34:50.3]} 8. Bd3 {[%clk 0:34:55.8]} 8... Bb7 {[%clk 0:34:51.4]} 9. O-O {[%clk 0:34:55.8]} 9... a6 {[%clk 0:34:49.7]} 10. e4 {[%clk 0:34:56.8]} 10... c5 {[%clk 0:34:50.5]} 11. d5 {[%clk 0:34:57.1]} 11... exd5 {[%clk 0:33:43.6]} 12. e5 {[%clk 0:33:40.5]} 12... Ne4 {[%clk 0:32:46]} 13. e6 {[%clk 0:28:11.5]} 13... fxe6 {[%clk 0:31:06]} 14. Bxe4 {[%clk 0:27:42.3]} 14... dxe4 {[%clk 0:30:54.8]} 15. Ng5 {[%clk 0:27:40.1]} 15... Nf6 {[%clk 0:29:32.9]} 16. Nxe6 {[%clk 0:23:26.1]} 16... Qxd1 {[%clk 0:28:26.9]} 17. Rxd1 {[%clk 0:23:13.3]} 17... Rc8 {[%clk 0:23:48.2]} 18. Be3 {[%clk 0:21:18.4]} 18... Rg8 {[%clk 0:18:42.5]} 19. Rac1 {[%clk 0:16:50.2]} 19... Be7 {[%clk 0:18:09.8]} 20. b3 {[%clk 0:15:20.4]} 20... h6 {[%clk 0:16:41.7]} 21. a4 {[%clk 0:12:58.4]} 21... Kf7 {[%clk 0:16:09.6]} 22. Nf4 {[%clk 0:11:55.4]} 22... g5 {[%clk 0:15:52.9]} 23. Nfd5 {[%clk 0:11:09.1]} 23... Nxd5 {[%clk 0:12:02.3]} 24. Nxd5 {[%clk 0:11:11]} 24... Bxd5 {[%clk 0:11:12.3]} 25. Rxd5 {[%clk 0:11:08.9]} 25... Ke6 {[%clk 0:11:02.3]} 26. Rdd1 {[%clk 0:10:20.6]} 26... Rgd8 {[%clk 0:09:44.6]} 27. axb5 {[%clk 0:09:12.5]} 27... axb5 {[%clk 0:09:27.6]} 28. Kf1 {[%clk 0:08:07.4]} 28... c4 {[%clk 0:07:39.8]} 29. bxc4 {[%clk 0:07:21.3]} 29... Rxd1+ {[%clk 0:04:52.2]} 30. Rxd1 {[%clk 0:07:20.9]} 30... bxc4 {[%clk 0:04:51.3]} 31. Ke2 {[%clk 0:05:52.5]} 31... c3 {[%clk 0:02:38.8]} 32. Ra1 {[%clk 0:04:52]} 32... c2 {[%clk 0:01:50.8]} 33. Kd2 {[%clk 0:04:19.3]} 33... Bb4+ {[%clk 0:01:07.3]} 34. Kc1 {[%clk 0:04:18.5]} 34... Rc3 {[%clk 0:00:18.5]} 35. Kb2 {[%clk 0:03:40.5]} 35... c1=Q+ {[%clk 0:00:05]} 36. Bxc1 {[%clk 0:03:33.2]} 36... Rc6 {[%clk 0:00:06]} 37. Ra4 {[%clk 0:03:17.3]} 37... Bc3+ {[%clk 0:00:05.8]} 38. Kb3 {[%clk 0:03:13.2]} 38... Be5 {[%clk 0:00:05.4]} 39. Be3 {[%clk 0:03:05.5]} 39... Rc3+ {[%clk 0:00:06]} 40. Kb4 {[%clk 0:03:01]} 40... Kf5 {[%clk 0:00:05]} 41. Ra5 {[%clk 0:02:57.3]} 41... Rd3 {[%clk 0:00:04.2]} 42. Kc4 {[%clk 0:02:39.7]} 42... Rc3+ {[%clk 0:00:04.3]} 43. Kb4 {[%clk 0:02:29.7]} 43... Rd3 {[%clk 0:00:05.3]} 44. g4+ {[%clk 0:02:19]} 44... Ke6 {[%clk 0:00:04.3]} 45. Ra6+ {[%clk 0:02:12.3]} 45... Rd6 {[%clk 0:00:05.2]} 46. Rxd6+ {[%clk 0:01:50.8]} 46... Bxd6+ {[%clk 0:00:06.3]} 47. Kc4 {[%clk 0:01:51.5]} 47... Bxh2 {[%clk 0:00:08.2]} 48. Kd4 {[%clk 0:01:50.2]} 48... Be5+ {[%clk 0:00:08.8]} 49. Kxe4 {[%clk 0:01:51.1]} 49... Bd6 {[%clk 0:00:09]} 50. Bd4 {[%clk 0:01:50.1]} 50... Bf8 {[%clk 0:00:07.3]} 51. Bc3 {[%clk 0:01:45.6]} 51... Kf7 {[%clk 0:00:05]} 52. Kf5 {[%clk 0:01:46.2]} 52... Be7 {[%clk 0:00:05.8]} 53. f3 {[%clk 0:01:12.4]} 53... Bd6 {[%clk 0:00:06.4]} 54. Bf6 {[%clk 0:01:11.2]} 54... Bc7 {[%clk 0:00:06.1]} 55. Bb2 {[%clk 0:00:53.1]} 55... Bd6 {[%clk 0:00:07.1]} 56. Bc3 {[%clk 0:00:53.5]} 56... Be7 {[%clk 0:00:07.8]} 57. Be5 {[%clk 0:00:51.6]} 57... Bd8 {[%clk 0:00:08.3]} 58. Bd6 {[%clk 0:00:47.9]} 58... Bb6 {[%clk 0:00:08.9]} 59. Bb4 {[%clk 0:00:45.9]} 59... Bc7 {[%clk 0:00:09.8]} 60. Bc3 {[%clk 0:00:45.5]} 60... Bd6 {[%clk 0:00:10.6]} 61. Bd4 {[%clk 0:00:45.8]} 61... Be7 {[%clk 0:00:11.6]} 62. Be3 {[%clk 0:00:44.9]} 62... Bd6 {[%clk 0:00:11.8]} 63. Bd2 {[%clk 0:00:45.6]} 63... Bc7 {[%clk 0:00:12.6]} 64. Bc1 {[%clk 0:00:45.8]} 64... Bd6 {[%clk 0:00:13.8]} 65. Bxg5 {[%clk 0:00:44.7]} 65... hxg5 {[%clk 0:00:14.6]} 66. Kxg5 {[%clk 0:00:46.6]} 66... Kg7 {[%clk 0:00:15.6]} 67. f4 {[%clk 0:00:47.9]} 67... Be7+ {[%clk 0:00:16.4]} 68. Kf5 {[%clk 0:00:48.6]} 68... Kf7 {[%clk 0:00:16.9]} 69. g5 {[%clk 0:00:49.3]} 69... Kg7 {[%clk 0:00:17.5]} 70. Ke6 {[%clk 0:00:50]} 70... Bxg5 {[%clk 0:00:17.4]} 71. fxg5 {[%clk 0:00:48.8]} 71... Kg6 {[%clk 0:00:18.8]} 72. Kd5 {[%clk 0:00:50.3]} 72... Kxg5 {[%clk 0:00:20.2]} 1/2-1/2